[Event "Karel Janecek Open 2025"]
[Site "Prague"]
[Date "2025.02.27"]
[Round "1.11"]
[White "Ioannidis, Evgenios"]
[Black "Szvetits, Rene"]
[Result "1-0"]
[Annotator "TA"]
[ECO "D85"]
[WhiteElo "2484"]
[BlackElo "1992"]
[PlyCount "67"]
[EventDate "2025.02.21"]
[EventType "swiss"]
[EventCountry "CZE"]
[SourceTitle "playchess.com"]
[Source "ChessBase"]
[SourceQuality "1"]
[TimeControl "40/5400+30:1800+30"]

{[%evp 17,67,18,10,3,10,23,20,0,0,-6,25,0,15,25,14,18,31,0,65,0,0,0,201,207,254,267,263,195,313,305,289,292,489,485,490,489,762,764,706,622,720,727,899,877,1844,1816,3731,3714,3817,3511,3700,3596]} 1. d4 {[%emt 0:07:27]} Nf6 {[%emt 0:00:09]} 2. c4 {[%emt 0:00:06]} g6 {[%emt 0:00:07]} 3. Nc3 {[%emt 0:00:25]} d5 {[%emt 0:00:07]} 4. cxd5 {[%emt 0:00:55]} Nxd5 {[%emt 0:00:06]} 5. e4 {[%emt 0:00:09]} Nxc3 {[%emt 0:00:10]} 6. bxc3 {[%emt 0:00:08]} Bg7 {[%emt 0:00:12]} 7. Qa4+ {[%emt 0:00:16]} Nd7 {[%emt 0:03:16]} 8. Nf3 {[%emt 0:00:34]} O-O {[%emt 0:00:54]} 9. Be2 {[%emt 0:02:42]} c5 {[%emt 0:04:10]} 10. Qa3 {[%emt 0:00:06] D85: Exchange Grünfeld: Unusual White 7th moves and lines with 7 Nf3.} cxd4 {[%emt 0:03:30]} 11. cxd4 {[%emt 0:00:09]} Nf6 {[%emt 0:11:25]} 12. Qd3 $146 {[%emt 0:01:19] The position is equal.} (12. Qe3 $5) (12. Qe3 b6 13. h3 Bb7 14. Bd3 Rc8 15. Bd2 e6 16. O-O Re8 17. Rab1 Re7 18. Rfd1 {½-½ Fedoseev,V (2687)-Duda,J (2733) Rubinstein Memorial 60th 2024 (2)}) 12... b6 {[%emt 0:05:04]} 13. Bb2 {[%emt 0:01:38]} a5 {[%emt 0:10:14]} 14. O-O {[%emt 0:01:28]} Ba6 {[%emt 0:02:37]} 15. Qe3 {[%emt 0:00:07]} Bxe2 {[%emt 0:05:02]} 16. Qxe2 {[%emt 0:00:07]} Qd7 {[%emt 0:04:30]} 17. a4 {[%emt 0:02:38][%cal Ba2a4,Ba4b5][%mdl 32]} Qb7 {[%emt 0:03:32]} (17... e6 $11) 18. Rfe1 {[%emt 0:02:37]} (18. d5 $14) 18... e6 $11 {[%emt 0:07:02]} 19. Ne5 {[%emt 0:06:00]} b5 $2 {[%emt 0:06:12] [#] Black is now going downhill.} 20. axb5 $18 {[%emt 0:00:58]} ({Not} 20. Qxb5 Qxb5 21. axb5 Rfb8 $14) 20... Nd7 {[%emt 0:14:47]} 21. Nc6 {[%emt 0:00:11]} a4 {[%emt 0:00:08]} 22. h4 {[%emt 0:07:49][%cal Bh2h4,Bh4h5,Bh5h6][%mdl 32]} Nb8 {[%emt 0:02:31]} (22... h5 $142 23. Ba3 Rfe8) 23. d5 {[%emt 0:00:14][%cal Bd4d5,Bd5c6][%mdl 32]} Bxb2 {[%emt 0:04:18]} 24. Qxb2 {[%emt 0:00:05]} Nxc6 $2 {[%emt 0:01:10]} (24... h5 25. Qb4 Re8) 25. dxc6 {[%emt 0:00:07] White is clearly winning.} Qb6 {[%emt 0:00:57]} 26. h5 {[%emt 0:00:14]} Ra5 {[%emt 0:05:22]} (26... h6 $142 27. Qb4 Ra5) 27. h6 {[%emt 0:00:13]} f6 {[%emt 0:00:03][%cal Bf7f6,Bf6f5][%mdl 32]} 28. Reb1 {[%emt 0:00:38]} Kf7 {[%emt 0:00:30]} 29. Qb4 {[%emt 0:00:15]} Rfa8 {[%emt 0:03:00] [#]} 30. e5 $1 {[%emt 0:02:13][%mdl 512]} a3 {[%emt 0:01:50]} (30... fxe5 31. Ra3) 31. Qf4 {[%emt 0:00:47]} f5 {[%emt 0:00:37]} 32. Qh4 {[%emt 0:00:06]} Qd8 {[%emt 0:00:13] Prevents Qf6+} 33. Qxd8 {[%emt 0:00:04]} Rxd8 {[%emt 0:00:01]} 34. c7 {[%emt 0:00:06] Weighted Error Value: White=0.14 (very precise) /Black=1.08  Loses game:     	---       	Black=1      Mistake:       	White=1     	Black=4      Inaccurate:     	White=1     	Black=1      OK:         	White=4     	Black=7      Best:        	White=2     	Black=1} 1-0

[Event "Karel Janecek Open 2025"]
[Site "Prague"]
[Date "2025.02.27"]
[Round "1.12"]
[White "Vykouk, Jan"]
[Black "Lysenko, Yuri"]
[Result "1-0"]
[Annotator "TA"]
[ECO "B03"]
[WhiteElo "2478"]
[BlackElo "1989"]
[PlyCount "45"]
[EventDate "2025.02.21"]
[EventType "swiss"]
[EventCountry "CZE"]
[SourceTitle "playchess.com"]
[Source "ChessBase"]
[SourceQuality "1"]
[TimeControl "40/5400+30:1800+30"]

{[%evp 13,45,57,85,83,89,68,111,50,162,124,154,156,148,152,165,145,222,206,251,258,304,297,329,339,403,352,354,362,606,605,685,655,834,796]} 1. e4 {[%emt 0:00:04][%cal Be2e4,Be4e5][%mdl 32]} Nf6 {[%emt 0:03:18][%cal Bg8f6,Bf6d5,Bd5b6,Bb6d7][%mdl 32]} 2. e5 {[%emt 0:00:44]} Nd5 {[%emt 0:00:07]} 3. d4 {[%emt 0:00:30]} d6 {[%emt 0:00:05]} 4. c4 {[%emt 0:00:20][%cal Bc2c4,Bc4c5][%mdl 32]} Nb6 {[%emt 0:00:03]} 5. f4 {[%emt 0:00:41]} g6 {[%emt 0:00:18]} 6. Nc3 {[%emt 0:00:28]} Bg7 {[%emt 0:00:07]} 7. Be3 {[%emt 0:00:33]} O-O {[%emt 0:00:36] [#] 7...Be6 is the fancy move.} 8. c5 $1 {[%emt 0:02:56] B03: Alekhine's Defence: Four Pawns Attack.} N6d7 {[%emt 0:00:30]} 9. Nf3 {[%emt 0:00:19] White is more active.} Na6 {[%emt 0:08:46]} 10. Ne4 {[%emt 0:16:09]} ({White should play} 10. Bxa6 $16 bxa6 11. h4) 10... d5 {[%emt 0:05:58]} (10... dxc5 $14 11. dxc5 b6) 11. Nc3 $146 {[%emt 0:02:04][%cal Be4c3,Bc3e2,Be2g3,Bg3f5][%mdl 32]} (11. Nf2 c6 12. a3 Nc7 13. h4 b6 14. b4 a5 15. h5 axb4 16. axb4 Rxa1 17. Qxa1 bxc5 18. bxc5 {1-0 Kotsur,P (2500)-Krivonogov,A (2315) RUS-Cup06 Nizhnij Novgorod 1998 (1)}) 11... c6 {[%emt 0:00:30]} 12. h4 {[%emt 0:00:33]} b6 {[%emt 0:06:04][%cal Rb6c5]} 13. Qa4 {[%emt 0:03:29]} b5 {[%emt 0:09:48]} 14. Qd1 {[%emt 0:03:34]} b4 {[%emt 0:07:09]} (14... h5 $16 15. Bd3 Nc7) 15. Ne2 $18 {[%emt 0:00:12]} Nc7 {[%emt 0:00:15]} 16. h5 {[%emt 0:00:33]} Re8 {[%emt 0:06:06]} 17. hxg6 {[%emt 0:02:43]} fxg6 {[%emt 0:01:00]} 18. Ng3 {[%emt 0:06:40]} Nf8 {[%emt 0:01:30]} 19. Bd3 {[%emt 0:00:31]} Bg4 {[%emt 0:02:30]} 20. f5 {[%emt 0:00:33] [#] Hoping for fxg6.} Qd7 $2 {[%emt 0:03:40]} (20... e6 21. f6 Bh8) 21. Qc2 {[%emt 0:00:44] White is clearly winning.} gxf5 {[%emt 0:03:52]} 22. Nxf5 {[%emt 0:00:26]} h5 {[%emt 0:15:14]} 23. Ng3 {[%emt 0:00:22] Black did not feel at home in the position after the opening.   Weighted Error Value: White=0.11 (very precise) /Black=0.72  Mistake:       	White=1     	Black=3      Inaccurate:     	---       	Black=1      OK:         	White=8     	Black=3} 1-0

[Event "Karel Janecek Open 2025"]
[Site "Prague"]
[Date "2025.02.27"]
[Round "1.13"]
[White "Shevkunov, Vladyslav"]
[Black "Isik, Alparslan"]
[Result "0-1"]
[Annotator "TA RC"]
[ECO "A13"]
[WhiteElo "1989"]
[BlackElo "2477"]
[PlyCount "72"]
[EventDate "2025.02.21"]
[EventType "swiss"]
[EventCountry "CZE"]
[SourceTitle "playchess.com"]
[Source "ChessBase"]
[SourceQuality "1"]
[TimeControl "40/5400+30:1800+30"]

{[%evp 10,72,33,20,18,16,27,10,32,21,5,11,10,16,11,3,25,17,28,-11,26,20,53,50,46,48,38,35,36,0,67,35,69,58,57,-19,25,0,83,-39,-52,-37,-48,-59,-51,-48,-53,-110,-67,-121,-90,-378,-389,-396,-377,-367,-343,-29991,-29986,-29985,-29986,-29986,-29975,-29975,-29976]} 1. c4 {[%emt 0:01:19]} Nf6 {[%emt 0:02:20]} 2. g3 {[%emt 0:00:17]} e6 {[%emt 0:00:06]} 3. Bg2 {[%emt 0:00:08]} d5 {[%emt 0:00:05]} 4. Nf3 {[%emt 0:00:05]} d4 {[%emt 0:00:05]} 5. O-O {[%emt 0:08:21]} Nc6 {[%emt 0:00:19]} 6. d3 {[%emt 0:02:25]} Bc5 {[%emt 0:00:08] A13: English Opening: 1...e6.} 7. Nbd2 {[%emt 0:01:04][%cal Bb1d2,Bd2b3,Bb3c5][%mdl 32]} O-O {[%emt 0:00:08]} 8. Nb3 {[%emt 0:00:30]} Be7 {[%emt 0:00:04] The position is equal.} 9. e3 {[%emt 0:00:36]} dxe3 {[%emt 0:00:04]} 10. Bxe3 {[%emt 0:00:05]} Ng4 {[%emt 0:00:03]} 11. Bc5 {[%emt 0:04:41]} Bxc5 {[%emt 0:05:28]} 12. Nxc5 {[%emt 0:00:03]} b6 {[%emt 0:00:05]} 13. Qa4 $146 {[%emt 0:18:53]} (13. Nb3 Bb7 14. d4 Rb8 15. Qe2 Nf6 16. Rad1 Ne7 17. Rfe1 Ng6 18. h4 Qc8 19. Bh3 {½-½ So,W (2747)-Keymer,V (2733) Oslo CCT Final 2024 (4.3)}) 13... Ne7 {[%emt 0:12:11]} 14. h3 {[%emt 0:05:45]} bxc5 {[%emt 0:22:00]} 15. hxg4 {[%emt 0:00:07][%cal Of3d4]} Bb7 {[%emt 0:03:44][%cal Oa8b8]} 16. Qb5 {[%emt 0:06:02][%csl LRb7,LRc5]} Bxf3 {[%emt 0:05:07]} 17. Bxf3 {[%emt 0:00:03]} Rb8 {[%emt 0:00:07]} 18. Qxc5 {[%emt 0:00:17]} Rxb2 {[%emt 0:01:14]} 19. Kg2 {[%emt 0:14:14]} Nc8 {[%emt 0:02:49]} ({Black should play} 19... Qd6 $11 20. Qxa7 Rfb8) 20. Rh1 {[%emt 0:06:15]} Qd6 {[%emt 0:03:40]} 21. Qe3 {[%emt 0:04:45]} Ne7 {[%emt 0:08:54]} 22. Rh5 {[%emt 0:10:34]} (22. Qxa7 f5 23. Rhf1 fxg4 24. Bxg4 Nf5 25. Bxf5 exf5 $11) (22. Rhb1 $14 Rc2 23. Bd1 (23. Qxa7 Qxd3 24. Rb8 g5 $11)) 22... Rd8 {[%emt 0:02:52]} (22... f5 $5) 23. Rah1 {[%emt 0:02:36]} Qxd3 {[%emt 0:04:50] [#]} (23... Rxa2 $2 {loses.} 24. Rxh7 f6 (24... Ng6 $2 25. Be4 $18) 25. c5 $18) (23... h6 $1 $11 {remains equal.}) 24. Rxh7 {[%emt 0:00:28]} Ng6 $36 {[%emt 0:00:15][%mdl 2048] Black has good play. Active counter play!} ({And not} 24... Qxe3 25. Rh8#) 25. Qxa7 {[%emt 0:04:43]} Qxc4 {[%emt 0:01:32]} 26. R7h5 $1 {[%emt 0:02:02]} Rxa2 {[%emt 0:01:56]} 27. Qc5 {[%emt 0:03:06]} Rc2 {[%emt 0:00:42] Some like it hot} 28. Qe3 {[%emt 0:03:12]} (28. Qxc4 $15 Rxc4 29. Ra5) 28... Qd4 {[%emt 0:01:27]} 29. Qe1 {[%emt 0:00:13]} (29. Qxd4 $15 Rxd4 30. Ra5) 29... c5 {[%emt 0:03:06] Hoping for ...Rb8.} 30. Be4 $2 {[%emt 0:01:58][%mdl 8192] [#] Now White is beyond hope.} (30. Rf1 $17) 30... Rxf2+ $3 $19 {[%emt 0:00:14][%mdl 512]} 31. Qxf2 {[%emt 0:00:01] Hoping for Bxg6.} Qxe4+ {[%emt 0:00:06]} 32. Kh2 {[%emt 0:00:13]} Ne5 {[%emt 0:00:34]} (32... Qxg4 33. Rxc5 f5 34. Rhc1 $17) 33. Qf4 {[%emt 0:01:20]} (33. Rxe5 $19 Qxe5 34. Rf1) 33... Nxg4+ {[%emt 0:00:25] Black mates.} 34. Kh3 {[%emt 0:00:16]} Qxh1+ {[%emt 0:00:15]} 35. Kxg4 {[%emt 0:00:03] [#]} Qxh5+ $3 {[%emt 0:00:32][%mdl 512]} 36. Kxh5 {[%emt 0:00:08]} Rd5+ {[%emt 0:00:32] Weighted Error Value: White=0.56/Black=0.15 (very precise)   Loses game:     	White=1     	---        Mistake:       	White=5     	Black=2      Inaccurate:     	White=3     	Black=5      OK:         	White=8     	Black=13     Best:        	White=2     	Black=1      Strong:       	White=1     	---        Brilliant:      	---       	Black=1} 0-1

[Event "Karel Janecek Open 2025"]
[Site "Prague"]
[Date "2025.02.27"]
[Round "1.14"]
[White "Haring, Filip"]
[Black "Estevez Sacristan, Deva"]
[Result "1-0"]
[Annotator "TA"]
[ECO "A14"]
[WhiteElo "2470"]
[BlackElo "1988"]
[PlyCount "107"]
[EventDate "2025.02.21"]
[EventType "swiss"]
[EventCountry "CZE"]
[SourceTitle "playchess.com"]
[Source "ChessBase"]
[SourceQuality "1"]
[TimeControl "40/5400+30:1800+30"]

{[%evp 18,107,0,10,0,-2,22,28,27,27,28,29,37,19,21,38,43,44,47,43,36,50,48,41,89,39,43,-22,66,63,53,0,0,16,54,15,23,29,118,107,132,136,128,127,135,111,152,154,235,246,360,364,339,322,408,414,383,310,307,285,348,336,430,402,462,455,508,522,496,519,511,509,566,575,596,532,541,539,652,649,684,681,735,648,641,644,627,642,602,594,667,644]} 1. Nf3 {[%emt 0:02:53]} Nf6 {[%emt 0:00:23]} 2. c4 {[%emt 0:00:37]} e6 {[%emt 0:00:25]} 3. g3 {[%emt 0:00:10]} d5 {[%emt 0:00:56]} 4. Bg2 {[%emt 0:00:10]} Be7 {[%emt 0:00:53]} 5. O-O {[%emt 0:00:14]} O-O {[%emt 0:01:10]} 6. b3 {[%emt 0:00:09]} c5 {[%emt 0:01:46]} 7. Bb2 {[%emt 0:01:28]} Nc6 {[%emt 0:04:17]} 8. e3 {[%emt 0:05:03]} d4 {[%emt 0:12:42]} 9. exd4 {[%emt 0:00:28]} cxd4 {[%emt 0:00:27]} 10. Re1 {[%emt 0:01:00]} Rb8 {[%emt 0:03:13] A14: English Opening: 1...e6 with b3 by White.} 11. d3 {[%emt 0:08:28]} b6 {[%emt 0:01:57]} 12. Na3 $146 {[%emt 0:06:32]} ({Predecessor:} 12. a3 a5 13. Nbd2 Bb7 14. Qc2 Re8 15. Re2 Bc5 16. Rae1 Qd6 17. Qc1 h6 18. h3 {0-1 Szikszai,B (2312)-Pasztor,B (2406) HUN-ch U20 Budapest 2024 (9)}) 12... Bc5 {[%emt 0:05:33] White has an edge.} 13. Nc2 {[%emt 0:01:43]} Bb7 {[%emt 0:04:36]} 14. a3 {[%emt 0:02:56] b4 would now be deadly.} a5 {[%emt 0:01:59]} 15. Bc1 {[%emt 0:05:46]} Re8 {[%emt 0:09:37]} 16. Rb1 {[%emt 0:05:40]} e5 {[%emt 0:10:00]} 17. b4 {[%emt 0:00:56]} Bd6 {[%emt 0:00:40]} 18. Bg5 {[%emt 0:02:10]} h6 {[%emt 0:02:38]} 19. Bxf6 {[%emt 0:01:57]} Qxf6 {[%emt 0:00:37]} 20. Nd2 {[%emt 0:02:55]} Qg6 {[%emt 0:04:18]} (20... axb4 $14 21. axb4 (21. Nxb4 Nxb4 22. axb4 Bxg2 $11) 21... Qg6) 21. Bd5 {[%emt 0:15:42]} (21. Be4 $16 f5 22. Bd5+ Kh8 23. Nf3) 21... axb4 $14 {[%emt 0:03:51]} (21... Qxd3 $2 22. Be4 Qc3 23. Rb3 $18) 22. Qf3 {[%emt 0:04:49]} (22. axb4 $14 Ne7 23. Be4) 22... Na5 {[%emt 0:11:46]} ({Black should play} 22... bxa3 $1 $11 23. Rxb6 (23. Bxc6 Bxc6 24. Qxc6 Qxd3 $15) 23... Nb4 24. Nxb4 Bxd5 25. Nxd5 Rxb6 26. Nxb6 Bb4) 23. axb4 {[%emt 0:07:52]} Bxd5 {[%emt 0:03:10]} 24. cxd5 {[%emt 0:00:39][%csl Od5] White has a strong passed pawn} (24. Qxd5 {looks sharper.} Qxd3 25. bxa5 Qxd2 26. Qxd6 Qxc2 27. Rec1) 24... Nb7 {[%emt 0:01:24]} 25. Na3 {[%emt 0:00:38][%cal Bc2a3,Ba3b5,Bb5d4,Bd4f5][%mdl 32]} Rbc8 {[%emt 0:01:55]} 26. Nb5 {[%emt 0:01:49]} Bb8 {[%emt 0:00:44]} 27. Rec1 $36 {[%emt 0:07:06][%mdl 2048] White fights for an advantage.} f5 {[%emt 0:01:51] Black is on the road to losing.} (27... Nd6 $11 28. Nxd6 Rxc1+ 29. Rxc1 Qxd6) 28. Rc6 $16 {[%emt 0:02:19]} Rxc6 {[%emt 0:03:10]} 29. dxc6 {[%emt 0:00:03]} e4 {[%emt 0:01:12]} 30. dxe4 {[%emt 0:01:29]} Qxc6 {[%emt 0:02:31]} 31. Nxd4 {[%emt 0:00:51] Excellent horsemanship.} (31. exf5 Qxb5 32. Qxb7 Qxf5 $15) (31. Qxf5 Be5 $16) 31... Qd7 {[%emt 0:01:09]} 32. Qb3+ {[%emt 0:05:41]} (32. Qxf5 $2 {perishes.} Qxd4 33. Qd5+ Qxd5 34. exd5 Nd6 $19) 32... Kh8 {[%emt 0:00:20] [#]} (32... Kf8 $16) 33. Nxf5 $1 $18 {[%emt 0:01:40]} Qxd2 {[%emt 0:03:42]} (33... Nd6 {was called for.}) 34. Qf7 $1 {[%emt 0:00:10][%csl Gf5,LRb7,LRe8,LRg7][%cal Rf7g7]} Rg8 {[%emt 0:00:03]} 35. Qxb7 {[%emt 0:00:16]} Qc2 {[%emt 0:00:19]} 36. Rf1 {[%emt 0:01:11]} Be5 {[%emt 0:02:37]} 37. Qd5 {[%emt 0:01:58]} Bf6 {[%emt 0:00:24][%cal Be5f6,Bf6d4,Bd4b6][%mdl 32]} 38. Qe6 {[%emt 0:00:49]} Qc3 {[%emt 0:00:41]} 39. Qxb6 {[%emt 0:01:40]} Rd8 {[%emt 0:00:30]} 40. Ne3 {[%emt 0:01:51]} Re8 {[%emt 0:00:32]} 41. Nd5 {[%emt 0:30:29] White is clearly winning.} Bd4 {[%emt 0:30:31]} 42. Nxc3 {[%emt 0:00:00]} Bxb6 {[%emt 0:00:00][%mdl 4096] Endgame KRB-KRN. White is 3 pawns up.} 43. Nd5 {[%emt 0:00:00]} Bd4 {[%emt 0:00:00]} 44. Re1 {[%emt 0:00:00]} Rf8 {[%emt 0:00:00]} 45. Re2 {[%emt 0:00:00]} Kg8 {[%emt 0:00:00]} 46. Kg2 {[%emt 0:00:00]} Kf7 {[%emt 0:00:00]} 47. f4 {[%emt 0:00:00]} Ke6 {[%emt 0:00:00]} 48. Rd2 {[%emt 0:00:00]} Ba7 {[%emt 0:00:00]} 49. b5 {[%emt 0:00:00][%cal Bb4b5,Bb5b6][%mdl 32]} Rb8 {[%emt 0:00:00]} 50. Ra2 {[%emt 0:00:00]} Bc5 {[%emt 0:00:00]} 51. Ra6+ {[%emt 0:00:00]} Kd7 {[%emt 0:00:00]} 52. b6 {[%emt 0:00:00]} Kc6 {[%emt 0:00:00]} 53. Ra7 {[%emt 0:00:00]} Bd4 {[%emt 0:00:00]} 54. Kf3 {[%emt 0:00:00] Weighted Error Value: White=0.14 (very precise) /Black=0.34  Mistake:       	White=2     	Black=5      Inaccurate:     	White=2     	Black=2      OK:         	White=20    	Black=11     Best:        	White=2     	Black=3      Strong:       	White=1     	---} 1-0

[Event "Karel Janecek Open 2025"]
[Site "Prague"]
[Date "2025.02.27"]
[Round "1.15"]
[White "Mrazik, Tomas"]
[Black "Agmanov, Zhandos"]
[Result "0-1"]
[Annotator "TA"]
[ECO "A17"]
[WhiteElo "1987"]
[BlackElo "2469"]
[PlyCount "76"]
[EventDate "2025.02.21"]
[EventType "swiss"]
[EventCountry "CZE"]
[SourceTitle "playchess.com"]
[Source "ChessBase"]
[SourceQuality "1"]
[TimeControl "40/5400+30:1800+30"]

{[%evp 9,76,8,12,0,10,0,0,3,-2,-2,17,7,8,2,-1,-6,0,-24,0,0,1,0,0,-56,-53,-133,-133,-130,-47,-55,-46,-92,-35,-38,-38,-42,-48,-47,-40,-62,-39,-89,-87,-98,-66,-52,-38,-45,-35,-75,-72,-60,-70,-272,-266,-254,-262,-212,-141,-452,-435,-440,-439,-512,-511,-1106,-1096,-29997,-29998]} 1. Nf3 {[%emt 0:00:06]} Nf6 {[%emt 0:00:53]} 2. c4 {[%emt 0:00:39]} e6 {[%emt 0:01:02]} 3. Nc3 {[%emt 0:00:44]} d5 {[%emt 0:00:09]} 4. e3 {[%emt 0:00:17]} Bd6 {[%emt 0:00:12]} 5. b3 {[%emt 0:02:00]} O-O {[%emt 0:00:12]} 6. Be2 {[%emt 0:01:19] A17: English Opening: 1...Nf6 with ...Bb4.} Re8 {[%emt 0:03:45]} 7. d4 {[%emt 0:02:07]} b6 {[%emt 0:01:26]} 8. O-O {[%emt 0:03:13] The position is equal.} Bb7 {[%emt 0:03:15]} 9. Nb5 $146 {[%emt 0:04:53]} ({Predecessor:} 9. Bb2 Nbd7 10. Qc2 c5 11. cxd5 Nxd5 12. Nxd5 Bxd5 13. Rac1 Rc8 14. Qd3 Bb7 15. Rfd1 {½-½ Reisch,J (1330)-Lohmann,T (1097) Harburg-chF 14t 2019 (1.1)}) 9... Bf8 {[%emt 0:07:07]} 10. Bb2 {[%emt 0:03:58]} a6 {[%emt 0:05:14]} 11. Nc3 {[%emt 0:01:13]} Nbd7 {[%emt 0:00:55]} 12. Qc2 {[%emt 0:07:25]} Rc8 {[%emt 0:12:33]} 13. Rac1 {[%emt 0:11:49]} Bd6 {[%emt 0:11:19]} 14. Rfd1 {[%emt 0:04:06]} Qe7 {[%emt 0:00:27]} 15. Qb1 {[%emt 0:07:12]} c5 {[%emt 0:07:25]} 16. Qa1 {[%emt 0:09:06] The position is symmetric and equal} (16. cxd5 $11 exd5 17. dxc5 bxc5 18. Qd3) 16... cxd4 {[%emt 0:06:13]} 17. Nxd4 {[%emt 0:02:48]} (17. exd4 $15 Bf4 18. Rb1) 17... dxc4 $17 {[%emt 0:00:42]} 18. bxc4 {[%emt 0:03:43]} Nc5 {[%emt 0:09:50][%csl Oc5] Strong Square Black (c5) Black is more active.} (18... Ne5 $17 19. Ndb5 Bb4 (19... axb5 20. Nxb5 Nfg4 21. Nxd6 $19) (19... Nxc4 20. Nxd6 Nxd6 21. Ba3 $11)) 19. Bf3 {[%emt 0:03:09]} Red8 {[%emt 0:06:28]} 20. Bxb7 {[%emt 0:06:35]} (20. Qb1 $15 {might be stronger.}) 20... Qxb7 {[%emt 0:00:13]} ({Black should try} 20... Nxb7 $17 21. h3 Bb8 (21... Rxc4 22. Ne4 $11)) 21. Nf3 {[%emt 0:00:28]} Be7 {[%emt 0:02:04]} 22. Rxd8+ {[%emt 0:00:23]} Rxd8 {[%emt 0:00:24]} 23. Rd1 {[%emt 0:05:15]} Rc8 {[%emt 0:00:06]} 24. Qb1 {[%emt 0:01:57]} Ncd7 {[%emt 0:02:50]} 25. Rd4 {[%emt 0:06:56]} ({White should play} 25. Qd3 $15) 25... Bc5 {[%emt 0:01:02]} 26. Rh4 {[%emt 0:00:37]} h6 {[%emt 0:01:40]} 27. Ne4 {[%emt 0:03:08] aiming for Nxf6+.} Nxe4 {[%emt 0:00:07]} 28. Rxe4 {[%emt 0:01:04]} Bf8 {[%emt 0:01:09]} 29. Rg4 {[%emt 0:01:47]} b5 {[%emt 0:03:30]} 30. cxb5 {[%emt 0:01:30]} Qxb5 {[%emt 0:00:03]} 31. Nd4 $2 {[%emt 0:02:23]} (31. Rd4 $1 $15) 31... Qc4 $19 {[%emt 0:03:59] aiming for ...e5.} 32. h3 {[%emt 0:01:36]} Nf6 {[%emt 0:00:56]} 33. Rg3 {[%emt 0:00:51]} Bd6 {[%emt 0:00:05]} 34. Rf3 {[%emt 0:00:51][%mdl 8192] [#] White does not recover from this.} (34. f4 $17) 34... Ne4 $1 {[%emt 0:00:05]} 35. Nb3 {[%emt 0:01:11]} (35. Qxe4 $2 {is a self mate.} Qc1+ 36. Bxc1 Rxc1#) (35. Qa1 Nd2) 35... Ng5 {[%emt 0:00:48]} 36. Qd1 {[%emt 0:00:58]} Nxf3+ {[%emt 0:01:52]} 37. Qxf3 {[%emt 0:00:27]} (37. gxf3 $142 Be7 38. e4) 37... Qc2 {[%emt 0:00:21] ( -> ...Qb1+)} 38. Bc1 {[%emt 0:00:50] [#]} Qxc1+ $1 {[%emt 0:00:07][%mdl 512] Weighted Error Value: White=0.72/Black=0.13 (very precise)   Loses game:     	White=2     	---        Mistake:       	White=5     	Black=2      Inaccurate:     	White=2     	Black=2      OK:         	White=7     	Black=14     Best:        	---       	Black=2} 0-1

[Event "Karel Janecek Open 2025"]
[Site "Prague"]
[Date "2025.02.27"]
[Round "1.16"]
[White "Urazayev, Arystanbek"]
[Black "Baliuniene, Margarita"]
[Result "1-0"]
[Annotator "TA"]
[ECO "B27"]
[WhiteElo "2467"]
[BlackElo "1986"]
[PlyCount "47"]
[EventDate "2025.02.21"]
[EventType "swiss"]
[EventCountry "CZE"]
[SourceTitle "playchess.com"]
[Source "ChessBase"]
[SourceQuality "1"]
[TimeControl "40/5400+30:1800+30"]

{[%evp 9,47,4,12,4,12,11,37,36,43,25,57,49,301,292,304,287,280,265,311,307,574,578,558,578,578,577,577,558,1031,1057,999,1053,1054,1039,1054,1053,1028,999,1120,1106]} 1. e4 {[%emt 0:00:04]} c5 {[%emt 0:00:03]} 2. Nf3 {[%emt 0:00:12]} g6 {[%emt 0:00:10]} 3. Bc4 {[%emt 0:01:37]} Bg7 {[%emt 0:00:07]} 4. c3 {[%emt 0:00:07]} e6 {[%emt 0:00:15]} 5. O-O {[%emt 0:01:33]} Ne7 {[%emt 0:00:17]} 6. d4 {[%emt 0:02:16] B27: Sicilian: 2 Nf3, unusual Black 2nd moves.} cxd4 {[%emt 0:00:12]} 7. Nxd4 {[%emt 0:01:54]} Nbc6 {[%emt 0:03:36]} 8. Nxc6 {[%emt 0:08:10] White is slightly better.} bxc6 {[%emt 0:04:09]} 9. Qd6 $146 {[%emt 0:02:16]} (9. Be3 O-O 10. Nd2 d5 11. exd5 exd5 12. Be2 Nf5 13. Bc5 Re8 14. Re1 Be6 15. Nf3 Qc7 {1-0 Schleiff,W-Heun,A Rangliste 1200-1500 23113 2021}) 9... O-O {[%emt 0:04:27]} 10. Rd1 {[%emt 0:00:51]} f5 $2 {[%emt 0:07:06][%mdl 8192] [#]} (10... Qe8 $14) 11. Bg5 {[%emt 0:05:59]} Bf6 {[%emt 0:01:26]} 12. Bxf6 {[%emt 0:01:13]} Rxf6 {[%emt 0:00:06] Black is weak on the dark squares} 13. e5 {[%emt 0:00:12]} Rf8 {[%emt 0:02:31] [#]} 14. Bxe6+ {[%emt 0:00:21][%mdl 512]} dxe6 $2 {[%emt 0:01:33]} (14... Kg7 15. Na3 (15. Bxd7 Qxd7 16. Qxd7 Bxd7 $18) 15... Qe8) (14... Kh8 15. Na3) 15. Qxd8 $18 {[%emt 0:00:06] White is clearly winning.} Rxd8 {[%emt 0:00:06]} 16. Rxd8+ {[%emt 0:00:07]} Kf7 {[%emt 0:00:07]} 17. Na3 {[%emt 0:01:24]} Bb7 {[%emt 0:04:02]} 18. Rad1 {[%emt 0:00:07]} g5 {[%emt 0:06:53]} 19. Rxa8 {[%emt 0:00:09]} Bxa8 {[%emt 0:00:04]} 20. Rd8 {[%emt 0:00:06]} Bb7 {[%emt 0:00:50]} 21. Nc4 {[%emt 0:00:06]} Ba6 {[%emt 0:00:22]} 22. Nd6+ {[%emt 0:00:07]} Kg6 {[%emt 0:01:01]} 23. c4 {[%emt 0:00:05]} c5 {[%emt 0:02:40]} 24. Re8 {[%emt 0:00:46] White took control after the opening.   Weighted Error Value: White=0.02 (flawless) /Black=0.75  Loses game:     	---       	Black=1      Mistake:       	---       	Black=1      Inaccurate:     	---       	Black=3      OK:         	White=7     	Black=6      Best:        	White=1     	---        Brilliant:      	White=1     	---} 1-0